[Event "Live Chess"]
[Site "Chess.com"]
[Date "2023.05.21"]
[Round "-"]
[White "MartynColebrook"]
[Black "Hussamalhaidar"]
[Result "0-1"]
[WhiteElo "1224"]
[BlackElo "1156"]
[TimeControl "300"]
[EndTime "8:03:40 PDT"]
[Termination "Hussamalhaidar won by resignation"]

1. e4 {[%clk 0:04:58.6]} 1... g6 {[%clk 0:04:57.9]} 2. d4 {[%clk 0:04:56.6]}
2... Bg7 {[%clk 0:04:57]} 3. Nc3 {[%clk 0:04:51.9]} 3... d6 {[%clk 0:04:53.9]}
4. f4 {[%clk 0:04:50.1]} 4... e5 {[%clk 0:04:49.3]} 5. Nf3 {[%clk 0:04:47.3]}
5... exd4 {[%clk 0:04:43.9]} 6. Nxd4 {[%clk 0:04:44.7]} 6... Nf6 {[%clk
0:04:35.8]} 7. Bc4 {[%clk 0:04:41.5]} 7... Bg4 {[%clk 0:04:06.7]} 8. Qd3 {[%clk
0:04:35.2]} 8... O-O {[%clk 0:04:00.2]} 9. h3 {[%clk 0:04:33]} 9... Bd7 {[%clk
0:03:54.7]} 10. g4 {[%clk 0:04:30.9]} 10... c5 {[%clk 0:03:45.7]} 11. Nf3 {[%clk
0:04:21.4]} 11... Bc6 {[%clk 0:03:25.7]} 12. e5 {[%clk 0:04:17.9]} 12... Nfd7
{[%clk 0:03:06.9]} 13. Bd2 {[%clk 0:03:59.6]} 13... dxe5 {[%clk 0:03:02.2]} 14.
fxe5 {[%clk 0:03:38.1]} 14... Nxe5 {[%clk 0:02:58.4]} 15. Qe3 {[%clk 0:03:02.8]}
15... Nxf3+ {[%clk 0:02:54.1]} 16. Kf2 {[%clk 0:02:57.4]} 16... Nxd2 {[%clk
0:02:49.2]} 17. Rad1 {[%clk 0:02:50.3]} 17... Bxh1 {[%clk 0:02:45.5]} 18. Rxd2
{[%clk 0:02:48.3]} 18... Qh4+ {[%clk 0:02:41.2]} 19. Ke2 {[%clk 0:02:46.2]}
19... Nc6 {[%clk 0:02:34.2]} 20. Nd5 {[%clk 0:02:39.4]} 20... Rfe8 {[%clk
0:02:30.4]} 0-1

[Event "Live Chess"]
[Site "Chess.com"]
[Date "2023.05.21"]
[Round "-"]
[White "JoshMcK"]
[Black "Leonid_Starozhilov"]
[Result "0-1"]
[WhiteElo "1572"]
[BlackElo "2638"]
[TimeControl "300"]
[EndTime "8:03:45 PDT"]
[Termination "Leonid_Starozhilov won by resignation"]

1. e4 {[%clk 0:04:59.5]} 1... g6 {[%clk 0:04:58.9]} 2. d4 {[%clk 0:04:57.3]}
2... Bg7 {[%clk 0:04:57.6]} 3. Nc3 {[%clk 0:04:56.6]} 3... d6 {[%clk 0:04:55.8]}
4. Be3 {[%clk 0:04:55.6]} 4... Nc6 {[%clk 0:04:54.1]} 5. Qd2 {[%clk 0:04:54]}
5... e5 {[%clk 0:04:53.1]} 6. d5 {[%clk 0:04:44.2]} 6... Nce7 {[%clk 0:04:50]}
7. O-O-O {[%clk 0:04:42.6]} 7... a6 {[%clk 0:04:48.3]} 8. h4 {[%clk 0:04:41.2]}
8... Nf6 {[%clk 0:04:46.8]} 9. Bg5 {[%clk 0:04:31.4]} 9... h6 {[%clk 0:04:45.3]}
10. Bxf6 {[%clk 0:04:30]} 10... Bxf6 {[%clk 0:04:45.2]} 11. f3 {[%clk
0:04:22.2]} 11... b5 {[%clk 0:04:42.3]} 12. g4 {[%clk 0:04:20.3]} 12... Bb7
{[%clk 0:04:38]} 13. h5 {[%clk 0:04:13.8]} 13... Bg5 {[%clk 0:04:36.2]} 0-1

[Event "Live Chess"]
[Site "Chess.com"]
[Date "2023.05.21"]
[Round "-"]
[White "Bot_Boy"]
[Black "Mugzwang"]
[Result "0-1"]
[WhiteElo "332"]
[BlackElo "1458"]
[TimeControl "300"]
[EndTime "8:03:48 PDT"]
[Termination "Mugzwang won on time"]

1. Nf3 {[%clk 0:04:58.2]} 1... d5 {[%clk 0:04:54.4]} 2. e3 {[%clk 0:04:55.3]}
2... Nf6 {[%clk 0:04:47.8]} 3. d4 {[%clk 0:04:47.2]} 3... Bg4 {[%clk 0:04:44]}
4. Be2 {[%clk 0:04:44.9]} 4... e6 {[%clk 0:04:42.6]} 5. Ne5 {[%clk 0:04:41.6]}
5... Bxe2 {[%clk 0:04:40]} 6. Qxe2 {[%clk 0:04:40]} 6... Nbd7 {[%clk 0:04:36.4]}
7. Nxd7 {[%clk 0:04:23.7]} 7... Qxd7 {[%clk 0:04:32.8]} 8. O-O {[%clk
0:04:19.7]} 8... Bd6 {[%clk 0:04:27.5]} 9. Nc3 {[%clk 0:04:08.9]} 9... a6 {[%clk
0:04:21.7]} 10. Bd2 {[%clk 0:03:54.9]} 10... O-O {[%clk 0:04:19.5]} 11. Rae1
{[%clk 0:03:35.6]} 11... c6 {[%clk 0:04:05.1]} 12. Qf3 {[%clk 0:03:16.1]} 12...
Qc7 {[%clk 0:03:58.5]} 13. g3 {[%clk 0:02:59.7]} 13... Qb6 {[%clk 0:03:35.2]}
14. Na4 {[%clk 0:02:41.7]} 14... Qb5 {[%clk 0:03:25]} 15. b3 {[%clk 0:02:17.5]}
15... Bb4 {[%clk 0:03:23]} 16. Nc3 {[%clk 0:02:03.8]} 16... Bxc3 {[%clk
0:03:14.4]} 17. Bxc3 {[%clk 0:02:01.5]} 17... a5 {[%clk 0:03:07.6]} 18. a4
{[%clk 0:01:56.3]} 18... Qb6 {[%clk 0:03:00.2]} 19. Kh1 {[%clk 0:01:43.4]} 19...
Ne4 {[%clk 0:02:58.1]} 20. Bb2 {[%clk 0:01:07.2]} 20... Nd2 {[%clk 0:02:56.2]}
21. Qg2 {[%clk 0:00:44.3]} 21... Nxf1 {[%clk 0:02:54]} 22. Rxf1 {[%clk
0:00:43.1]} 22... Qa6 {[%clk 0:02:50.3]} 23. h4 {[%clk 0:00:24.3]} 23... b5
{[%clk 0:02:48.8]} 24. c4 {[%clk 0:00:13.3]} 24... bxa4 {[%clk 0:02:43.3]} 25.
Ba3 {[%clk 0:00:08.6]} 25... Rfc8 {[%clk 0:02:37.9]} 26. b4 {[%clk 0:00:02.6]}
26... Qxc4 {[%clk 0:02:31.9]} 0-1

[Event "Live Chess"]
[Site "Chess.com"]
[Date "2023.05.21"]
[Round "-"]
[White "Mikhail_Golubev"]
[Black "Conradical12"]
[Result "1-0"]
[WhiteElo "2444"]
[BlackElo "1532"]
[TimeControl "300"]
[EndTime "8:03:49 PDT"]
[Termination "Mikhail_Golubev won by resignation"]

1. Na3 {[%clk 0:04:51.1]} 1... e5 {[%clk 0:04:56.1]} 2. Nc4 {[%clk 0:04:43.7]}
2... Nc6 {[%clk 0:04:54.1]} 3. e4 {[%clk 0:04:42.1]} 3... Bc5 {[%clk 0:04:52.1]}
4. Nf3 {[%clk 0:04:35]} 4... f5 {[%clk 0:04:50.8]} 5. Nfxe5 {[%clk 0:04:25.8]}
5... Nxe5 {[%clk 0:04:48]} 6. Nxe5 {[%clk 0:04:24.8]} 6... d6 {[%clk 0:04:45.5]}
7. Nd3 {[%clk 0:03:37.6]} 7... Bb6 {[%clk 0:04:34.5]} 8. exf5 {[%clk 0:03:17.4]}
8... Bxf5 {[%clk 0:04:32]} 9. Be2 {[%clk 0:03:15.9]} 9... Ne7 {[%clk 0:04:30.4]}
10. O-O {[%clk 0:03:14.1]} 10... O-O {[%clk 0:04:26.2]} 11. Ne1 {[%clk
0:02:43.1]} 11... Ng6 {[%clk 0:04:18.8]} 12. d4 {[%clk 0:02:39.2]} 12... Qf6
{[%clk 0:04:15]} 13. Nf3 {[%clk 0:02:32.7]} 13... Rae8 {[%clk 0:04:13.5]} 14.
Bc4+ {[%clk 0:02:31.7]} 14... Kh8 {[%clk 0:04:09.8]} 15. Bg5 {[%clk 0:02:30]}
15... Bxc2 {[%clk 0:04:04.1]} 16. Qxc2 {[%clk 0:02:27.9]} 16... Qf5 {[%clk
0:03:58.8]} 17. Qxf5 {[%clk 0:02:22.7]} 17... Rxf5 {[%clk 0:03:58.7]} 18. Bd3
{[%clk 0:02:20.6]} 18... Rff8 {[%clk 0:03:55.5]} 19. Bxg6 {[%clk 0:02:19.4]}
19... hxg6 {[%clk 0:03:50.5]} 20. Rfe1 {[%clk 0:02:16.8]} 20... Rxe1+ {[%clk
0:03:46]} 21. Rxe1 {[%clk 0:02:14.9]} 21... Rf5 {[%clk 0:03:44.1]} 22. Re8+
{[%clk 0:02:12.3]} 22... Kh7 {[%clk 0:03:39.5]} 23. h4 {[%clk 0:02:08.1]} 1-0

[Event "Live Chess"]
[Site "Chess.com"]
[Date "2023.05.21"]
[Round "-"]
[White "chessfiction"]
[Black "NotHarryV"]
[Result "1-0"]
[WhiteElo "2297"]
[BlackElo "1502"]
[TimeControl "300"]
[EndTime "8:03:50 PDT"]
[Termination "chessfiction won on time"]

1. e4 {[%clk 0:04:59.4]} 1... c6 {[%clk 0:04:59]} 2. d4 {[%clk 0:04:59.3]} 2...
d5 {[%clk 0:04:57.9]} 3. Nc3 {[%clk 0:04:58.6]} 3... dxe4 {[%clk 0:04:56.7]} 4.
f3 {[%clk 0:04:58.5]} 4... exf3 {[%clk 0:04:55.6]} 5. Nxf3 {[%clk 0:04:58.4]}
5... Bg4 {[%clk 0:04:45.5]} 6. Bc4 {[%clk 0:04:57.7]} 6... e6 {[%clk 0:04:28.5]}
7. O-O {[%clk 0:04:56.4]} 7... Nf6 {[%clk 0:04:17.3]} 8. Bg5 {[%clk 0:04:51.3]}
8... Be7 {[%clk 0:04:15.5]} 9. Kh1 {[%clk 0:04:49.8]} 9... O-O {[%clk
0:04:07.4]} 10. Qd2 {[%clk 0:04:47.7]} 10... Bxf3 {[%clk 0:03:55]} 11. Rxf3
{[%clk 0:04:45.8]} 11... c5 {[%clk 0:03:50.8]} 12. Rh3 {[%clk 0:04:40.6]} 12...
cxd4 {[%clk 0:03:43.1]} 13. Ne2 {[%clk 0:04:33.7]} 13... Ne4 {[%clk 0:03:21.1]}
14. Bxe7 {[%clk 0:04:26.8]} 14... Nxd2 {[%clk 0:03:04.4]} 15. Bxd8 {[%clk
0:04:21.2]} 15... Nxc4 {[%clk 0:02:59.4]} 16. Be7 {[%clk 0:04:18.1]} 16... Re8
{[%clk 0:02:56.4]} 17. Bc5 {[%clk 0:04:14]} 17... Nxb2 {[%clk 0:02:42.1]} 18.
Bxd4 {[%clk 0:04:08.7]} 18... Nc4 {[%clk 0:02:34]} 19. Rb1 {[%clk 0:04:06]}
19... b6 {[%clk 0:02:31.3]} 20. Rc3 {[%clk 0:04:02.4]} 20... Nd6 {[%clk
0:02:25.9]} 21. Ng3 {[%clk 0:03:56.9]} 21... e5 {[%clk 0:02:22.8]} 22. Bg1
{[%clk 0:03:50.3]} 22... e4 {[%clk 0:02:16.3]} 23. Rd1 {[%clk 0:03:47.5]} 23...
Nb7 {[%clk 0:01:44.9]} 24. Nxe4 {[%clk 0:03:39.6]} 24... Na6 {[%clk 0:01:40]}
25. Ng5 {[%clk 0:03:35]} 25... Nbc5 {[%clk 0:01:35.8]} 26. Rf3 {[%clk
0:03:23.5]} 26... f6 {[%clk 0:01:32.3]} 27. Nh3 {[%clk 0:03:21.4]} 27... Re2
{[%clk 0:01:30]} 28. c3 {[%clk 0:03:16.9]} 28... Rxa2 {[%clk 0:01:27]} 29. Nf4
{[%clk 0:03:15.1]} 29... Re8 {[%clk 0:01:13.4]} 30. Rg3 {[%clk 0:03:13.5]} 30...
Ne4 {[%clk 0:01:05.7]} 31. Re3 {[%clk 0:03:11]} 31... Nac5 {[%clk 0:01:03.8]}
32. Rde1 {[%clk 0:03:07.5]} 32... Re5 {[%clk 0:01:00.6]} 33. h3 {[%clk
0:02:59.1]} 33... Nxc3 {[%clk 0:00:43.6]} 34. Rxe5 {[%clk 0:02:53.9]} 34... fxe5
{[%clk 0:00:43.5]} 35. Rxe5 {[%clk 0:02:51.9]} 35... N3e4 {[%clk 0:00:38.4]} 36.
Kh2 {[%clk 0:02:43.4]} 36... g5 {[%clk 0:00:26.9]} 37. Nd5 {[%clk 0:02:36.3]}
37... a5 {[%clk 0:00:24.4]} 38. Bxc5 {[%clk 0:02:31.6]} 38... Nxc5 {[%clk
0:00:22.6]} 39. Rxg5+ {[%clk 0:02:30.9]} 39... Kf7 {[%clk 0:00:21.7]} 40. Nxb6
{[%clk 0:02:30.2]} 40... Ne4 {[%clk 0:00:18.4]} 41. Re5 {[%clk 0:02:24.4]} 41...
Nd6 {[%clk 0:00:16.1]} 42. Nd5 {[%clk 0:02:22.5]} 42... a4 {[%clk 0:00:14.4]}
43. Re7+ {[%clk 0:02:21.6]} 43... Kg6 {[%clk 0:00:12.9]} 44. Re6+ {[%clk
0:02:21]} 44... Kf5 {[%clk 0:00:09.9]} 45. Rxd6 {[%clk 0:02:20.9]} 45... a3
{[%clk 0:00:08.9]} 46. Nc3 {[%clk 0:02:18.3]} 46... Rc2 {[%clk 0:00:06.7]} 47.
Rd5+ {[%clk 0:02:15.7]} 47... Ke6 {[%clk 0:00:05.2]} 48. Rh5 {[%clk 0:02:09]}
48... Rxc3 {[%clk 0:00:03.6]} 49. Rh6+ {[%clk 0:02:08.9]} 49... Kf5 {[%clk
0:00:02.5]} 50. Rxh7 {[%clk 0:02:07.8]} 1-0

[Event "Live Chess"]
[Site "Chess.com"]
[Date "2023.05.21"]
[Round "-"]
[White "bedsdrout"]
[Black "Olisingapore"]
[Result "1/2-1/2"]
[WhiteElo "1659"]
[BlackElo "1785"]
[TimeControl "300"]
[EndTime "8:03:54 PDT"]
[Termination "Game drawn by agreement"]

1. e4 {[%clk 0:04:57.8]} 1... c5 {[%clk 0:04:58.3]} 2. Nf3 {[%clk 0:04:55.5]}
2... d6 {[%clk 0:04:54.8]} 3. d4 {[%clk 0:04:52.1]} 3... cxd4 {[%clk 0:04:54.7]}
4. Nxd4 {[%clk 0:04:48.6]} 4... Nf6 {[%clk 0:04:52.7]} 5. Nc3 {[%clk 0:04:41.2]}
5... a6 {[%clk 0:04:50.9]} 6. Nf3 {[%clk 0:04:36.1]} 6... e5 {[%clk 0:04:44.9]}
7. a4 {[%clk 0:04:31]} 7... Be6 {[%clk 0:04:40.4]} 8. Ng5 {[%clk 0:04:27.6]}
8... Qd7 {[%clk 0:04:36.2]} 9. Bd3 {[%clk 0:04:13.2]} 9... Be7 {[%clk
0:04:24.8]} 10. Be3 {[%clk 0:03:43.6]} 10... h6 {[%clk 0:04:20.8]} 11. Nxe6
{[%clk 0:03:29]} 11... fxe6 {[%clk 0:04:16.7]} 12. a5 {[%clk 0:03:26.5]} 12...
Nc6 {[%clk 0:04:13.3]} 13. O-O {[%clk 0:03:22.3]} 13... O-O {[%clk 0:04:12.8]}
14. Ra4 {[%clk 0:03:19.3]} 14... Bd8 {[%clk 0:04:04.4]} 15. Bb6 {[%clk
0:03:15.2]} 15... Bxb6 {[%clk 0:04:00.4]} 16. axb6 {[%clk 0:03:05.1]} 16... Rac8
{[%clk 0:04:00.3]} 17. Ne2 {[%clk 0:03:03]} 17... d5 {[%clk 0:03:55.6]} 18. c3
{[%clk 0:02:58.8]} 18... dxe4 {[%clk 0:03:47.9]} 19. Bxe4 {[%clk 0:02:51.4]}
19... Qxd1 {[%clk 0:03:44.8]} 20. Rxd1 {[%clk 0:02:50]} 20... Nxe4 {[%clk
0:03:43.1]} 21. Rxe4 {[%clk 0:02:47.1]} 21... Rcd8 {[%clk 0:03:41.4]} 22. Rxd8
{[%clk 0:02:43.8]} 22... Rxd8 {[%clk 0:03:41.3]} 23. f3 {[%clk 0:02:41.9]} 23...
Kf7 {[%clk 0:03:33.3]} 24. Ng3 {[%clk 0:02:39.1]} 24... g6 {[%clk 0:03:27.7]}
25. Re2 {[%clk 0:02:33.5]} 25... Kf6 {[%clk 0:03:24.6]} 26. Ne4+ {[%clk
0:02:30.3]} 26... Kf5 {[%clk 0:03:21]} 27. Kf2 {[%clk 0:02:25.9]} 27... g5
{[%clk 0:03:03.8]} 28. Nc5 {[%clk 0:02:19.7]} 28... Na5 {[%clk 0:02:53.6]} 29.
b4 {[%clk 0:02:09.7]} 29... Nc4 {[%clk 0:02:50.6]} 30. Nxb7 {[%clk 0:01:59.7]}
30... Rb8 {[%clk 0:02:50]} 31. g4+ {[%clk 0:01:48.1]} 31... Kf6 {[%clk
0:02:40.2]} 32. Nc5 {[%clk 0:01:38.6]} 32... Nxb6 {[%clk 0:02:31.4]} 33. Ra2
{[%clk 0:01:35.6]} 33... Ra8 {[%clk 0:02:28.3]} 34. Rxa6 {[%clk 0:01:29.2]}
34... Rxa6 {[%clk 0:02:26.8]} 35. Nxa6 {[%clk 0:01:26.5]} 35... Nd5 {[%clk
0:02:26.1]} 36. c4 {[%clk 0:01:24]} 36... Nc7 {[%clk 0:02:24.4]} 37. Nxc7 {[%clk
0:01:20.3]} 37... Ke7 {[%clk 0:02:24.1]} 1/2-1/2

[Event "Live Chess"]
[Site "Chess.com"]
[Date "2023.05.21"]
[Round "-"]
[White "LanceMaster23"]
[Black "lateforthesky"]
[Result "1-0"]
[WhiteElo "1975"]
[BlackElo "2084"]
[TimeControl "300"]
[EndTime "8:03:56 PDT"]
[Termination "LanceMaster23 won by checkmate"]

1. Nf3 {[%clk 0:04:58.9]} 1... Nf6 {[%clk 0:04:58.5]} 2. d4 {[%clk 0:04:57.5]}
2... g6 {[%clk 0:04:57.3]} 3. Bf4 {[%clk 0:04:55.7]} 3... Bg7 {[%clk 0:04:56.2]}
4. e3 {[%clk 0:04:55.3]} 4... O-O {[%clk 0:04:54.8]} 5. h3 {[%clk 0:04:54.9]}
5... d6 {[%clk 0:04:52.6]} 6. Be2 {[%clk 0:04:54.5]} 6... c5 {[%clk 0:04:51.7]}
7. c3 {[%clk 0:04:53.4]} 7... Nc6 {[%clk 0:04:47.4]} 8. Nbd2 {[%clk 0:04:52.1]}
8... cxd4 {[%clk 0:04:46.2]} 9. exd4 {[%clk 0:04:52]} 9... Nd5 {[%clk
0:04:41.1]} 10. Bg3 {[%clk 0:04:50.8]} 10... e5 {[%clk 0:04:35]} 11. dxe5 {[%clk
0:04:49.6]} 11... dxe5 {[%clk 0:04:33.7]} 12. O-O {[%clk 0:04:46.3]} 12... e4
{[%clk 0:04:26.9]} 13. Nxe4 {[%clk 0:04:40]} 13... f5 {[%clk 0:04:19.1]} 14. Bc4
{[%clk 0:04:27.8]} 14... Ne7 {[%clk 0:04:12.7]} 15. Nc5 {[%clk 0:03:56.9]} 15...
Kh8 {[%clk 0:03:54.9]} 16. Bh4 {[%clk 0:03:53]} 16... Bf6 {[%clk 0:03:35.4]} 17.
Bxf6+ {[%clk 0:03:51.1]} 17... Rxf6 {[%clk 0:03:34.6]} 18. Re1 {[%clk 0:03:49]}
18... b6 {[%clk 0:03:26.7]} 19. Rxe7 {[%clk 0:03:25.1]} 19... Qxe7 {[%clk
0:03:17.6]} 20. Qxd5 {[%clk 0:03:22.6]} 20... Rb8 {[%clk 0:02:52.8]} 21. Qg8#
{[%clk 0:02:52.2]} 1-0

[Event "Live Chess"]
[Site "Chess.com"]
[Date "2023.05.21"]
[Round "-"]
[White "SimpleHarmonic1"]
[Black "Ra2orLeaf"]
[Result "1-0"]
[WhiteElo "2049"]
[BlackElo "1130"]
[TimeControl "300"]
[EndTime "8:03:57 PDT"]
[Termination "SimpleHarmonic1 won by resignation"]

1. e4 {[%clk 0:04:58.8]} 1... c5 {[%clk 0:04:56.3]} 2. Nf3 {[%clk 0:04:58.1]}
2... Nc6 {[%clk 0:04:55.6]} 3. Bb5 {[%clk 0:04:57.1]} 3... e6 {[%clk 0:04:54.8]}
4. Bxc6 {[%clk 0:04:56.5]} 4... bxc6 {[%clk 0:04:54.7]} 5. O-O {[%clk 0:04:56]}
5... d5 {[%clk 0:04:54.4]} 6. d3 {[%clk 0:04:55.6]} 6... Ne7 {[%clk 0:04:50.5]}
7. Nbd2 {[%clk 0:04:54.1]} 7... Ng6 {[%clk 0:04:41.1]} 8. Re1 {[%clk 0:04:51.3]}
8... Be7 {[%clk 0:04:40.5]} 9. Nf1 {[%clk 0:04:43.5]} 9... O-O {[%clk 0:04:39]}
10. Ng3 {[%clk 0:04:41.5]} 10... Bb7 {[%clk 0:04:04]} 11. Bd2 {[%clk 0:04:31.7]}
11... Rb8 {[%clk 0:03:44.1]} 12. a3 {[%clk 0:04:29]} 12... Ba6 {[%clk 0:03:43]}
13. Rb1 {[%clk 0:04:27.4]} 13... c4 {[%clk 0:03:38.4]} 14. d4 {[%clk 0:04:20.5]}
14... c5 {[%clk 0:03:19.8]} 15. c3 {[%clk 0:04:15]} 15... cxd4 {[%clk 0:03:12]}
16. Nxd4 {[%clk 0:04:13.8]} 16... e5 {[%clk 0:03:04]} 17. Ndf5 {[%clk
0:04:08.7]} 17... d4 {[%clk 0:02:58.6]} 18. cxd4 {[%clk 0:04:05.3]} 18... exd4
{[%clk 0:02:57.3]} 19. Nxe7+ {[%clk 0:04:03.8]} 19... Qxe7 {[%clk 0:02:57.2]}
20. Bb4 {[%clk 0:04:02.4]} 20... Qd7 {[%clk 0:02:46.8]} 21. Bxf8 {[%clk
0:04:00.3]} 21... Rxf8 {[%clk 0:02:44]} 22. Nf5 {[%clk 0:04:00.2]} 22... d3
{[%clk 0:02:35.8]} 23. Ne3 {[%clk 0:03:40.6]} 23... Ne5 {[%clk 0:02:13.5]} 24.
Rc1 {[%clk 0:03:36.8]} 24... d2 {[%clk 0:02:09.3]} 25. Nd5 {[%clk 0:03:25]}
25... dxe1=Q+ {[%clk 0:01:58.7]} 26. Qxe1 {[%clk 0:03:21.9]} 26... Nd3 {[%clk
0:01:57.5]} 27. Qd2 {[%clk 0:03:16.1]} 27... Nxc1 {[%clk 0:01:55.7]} 28. Nf6+
{[%clk 0:03:15.7]} 28... gxf6 {[%clk 0:01:46.5]} 29. Qxd7 {[%clk 0:03:15.6]}
29... Rc8 {[%clk 0:01:19.3]} 30. Qg4+ {[%clk 0:03:12.4]} 30... Kf8 {[%clk
0:01:09.2]} 31. Qh4 {[%clk 0:03:09]} 31... Ne2+ {[%clk 0:00:59.8]} 32. Kf1
{[%clk 0:02:52.8]} 32... c3 {[%clk 0:00:57.1]} 33. bxc3 {[%clk 0:02:43.4]} 33...
Rxc3 {[%clk 0:00:36.7]} 34. Ke1 {[%clk 0:02:41]} 34... Rc1+ {[%clk 0:00:18.9]}
35. Kd2 {[%clk 0:02:39.7]} 35... Ra1 {[%clk 0:00:16.2]} 36. Qxf6 {[%clk
0:02:38.6]} 36... Rxa3 {[%clk 0:00:13.1]} 37. Qd6+ {[%clk 0:02:35.2]} 37... Kg8
{[%clk 0:00:11.1]} 38. Qxa3 {[%clk 0:02:35.1]} 38... Nf4 {[%clk 0:00:09.3]} 39.
Qxa6 {[%clk 0:02:33.3]} 39... Nxg2 {[%clk 0:00:09.2]} 40. Qc8+ {[%clk
0:02:31.8]} 40... Kg7 {[%clk 0:00:07.9]} 41. Qg4+ {[%clk 0:02:31.7]} 41... Kf8
{[%clk 0:00:06.7]} 42. Qxg2 {[%clk 0:02:29.2]} 1-0

[Event "Live Chess"]
[Site "Chess.com"]
[Date "2023.05.21"]
[Round "-"]
[White "McSlash1"]
[Black "therealab0ne"]
[Result "1-0"]
[WhiteElo "1995"]
[BlackElo "745"]
[TimeControl "300"]
[EndTime "8:04:24 PDT"]
[Termination "McSlash1 won by resignation"]

1. e4 {[%clk 0:04:59.4]} 1... c5 {[%clk 0:04:52.4]} 2. Nf3 {[%clk 0:04:57.9]}
2... Nc6 {[%clk 0:04:47.9]} 3. d4 {[%clk 0:04:57.8]} 3... cxd4 {[%clk
0:04:47.1]} 4. Nxd4 {[%clk 0:04:57.7]} 4... Nf6 {[%clk 0:04:46.7]} 5. Nc3 {[%clk
0:04:56.6]} 5... d6 {[%clk 0:04:45.9]} 6. Bc4 {[%clk 0:04:54.9]} 6... g6 {[%clk
0:04:42]} 7. Be3 {[%clk 0:04:52.6]} 7... Bg7 {[%clk 0:04:41.1]} 8. f3 {[%clk
0:04:51.4]} 8... O-O {[%clk 0:04:40.2]} 9. Qd2 {[%clk 0:04:50.9]} 9... e5 {[%clk
0:04:34.6]} 10. Ndb5 {[%clk 0:04:49]} 10... Re8 {[%clk 0:04:10.2]} 11. O-O-O
{[%clk 0:04:46.9]} 11... Be6 {[%clk 0:03:44.4]} 12. Bxe6 {[%clk 0:04:42.7]}
12... Rxe6 {[%clk 0:03:43.2]} 13. Nd5 {[%clk 0:04:39.7]} 13... Qa5 {[%clk
0:03:25.7]} 14. Qxa5 {[%clk 0:04:37.6]} 14... Nxa5 {[%clk 0:03:24.6]} 15. Nbc7
{[%clk 0:04:35.8]} 15... Rc8 {[%clk 0:03:13.1]} 16. Nxe6 {[%clk 0:04:33.7]}
16... fxe6 {[%clk 0:03:12.4]} 17. Ne7+ {[%clk 0:04:33.3]} 17... Kf7 {[%clk
0:03:09.9]} 18. Nxc8 {[%clk 0:04:33.2]} 18... Nc4 {[%clk 0:03:08.1]} 19. Nxd6+
{[%clk 0:04:31.6]} 19... Nxd6 {[%clk 0:03:06.7]} 20. Rxd6 {[%clk 0:04:31.5]}
20... Ke7 {[%clk 0:03:05.4]} 21. Rhd1 {[%clk 0:04:29.9]} 1-0

[Event "Live Chess"]
[Site "Chess.com"]
[Date "2023.05.21"]
[Round "-"]
[White "Hacker_2009"]
[Black "PaulyD81"]
[Result "1-0"]
[WhiteElo "1956"]
[BlackElo "1183"]
[TimeControl "300"]
[EndTime "8:04:34 PDT"]
[Termination "Hacker_2009 won by resignation"]

1. d4 {[%clk 0:04:58.5]} 1... Nf6 {[%clk 0:04:56.9]} 2. Nf3 {[%clk 0:04:57.7]}
2... e6 {[%clk 0:04:56]} 3. e3 {[%clk 0:04:56.3]} 3... Bb4+ {[%clk 0:04:52.4]}
4. Bd2 {[%clk 0:04:55.2]} 4... Bxd2+ {[%clk 0:04:50.5]} 5. Nbxd2 {[%clk
0:04:54]} 5... d5 {[%clk 0:04:49.7]} 6. c4 {[%clk 0:04:52.8]} 6... c5 {[%clk
0:04:38.3]} 7. cxd5 {[%clk 0:04:48.9]} 7... Qxd5 {[%clk 0:04:29.1]} 8. Bc4
{[%clk 0:04:42.8]} 8... Qc6 {[%clk 0:04:14.6]} 9. Qe2 {[%clk 0:04:37.8]} 9... b5
{[%clk 0:04:11.7]} 10. Bxb5 {[%clk 0:04:36.2]} 10... O-O {[%clk 0:03:46.7]} 11.
Bxc6 {[%clk 0:04:34.7]} 11... Nxc6 {[%clk 0:03:45.8]} 12. O-O {[%clk 0:04:34.2]}
12... cxd4 {[%clk 0:03:36.8]} 13. Nxd4 {[%clk 0:04:32.4]} 13... e5 {[%clk
0:03:31.2]} 14. Nxc6 {[%clk 0:04:31.1]} 14... Bg4 {[%clk 0:03:29.6]} 15. f3
{[%clk 0:04:29.2]} 15... Bd7 {[%clk 0:03:22.9]} 16. Nxe5 {[%clk 0:04:27.7]} 1-0

[Event "Live Chess"]
[Site "Chess.com"]
[Date "2023.05.21"]
[Round "-"]
[White "YrrriKharkiv"]
[Black "SaraTang"]
[Result "1-0"]
[WhiteElo "2045"]
[BlackElo "138"]
[TimeControl "300"]
[EndTime "8:04:36 PDT"]
[Termination "YrrriKharkiv won - game abandoned"]

1. d4 {[%clk 0:04:57.5]} 1... d5 {[%clk 0:04:57.8]} 2. Nf3 {[%clk 0:04:57.1]}
2... Nf6 {[%clk 0:04:54.2]} 3. c4 {[%clk 0:04:56.6]} 3... dxc4 {[%clk
0:04:52.4]} 4. Nc3 {[%clk 0:04:50]} 4... e6 {[%clk 0:04:43]} 5. e4 {[%clk
0:04:46.7]} 5... Bb4 {[%clk 0:04:24.1]} 6. Bg5 {[%clk 0:04:36.2]} 6... Bxc3+
{[%clk 0:04:16.8]} 7. bxc3 {[%clk 0:04:34.5]} 7... Nxe4 {[%clk 0:04:09.3]} 8.
Bxd8 {[%clk 0:04:32.7]} 8... O-O {[%clk 0:04:03.6]} 9. Bxc7 {[%clk 0:04:31]}
9... Nd7 {[%clk 0:04:00.3]} 10. Qc2 {[%clk 0:04:27.8]} 10... Rd8 {[%clk
0:03:50.3]} 11. Qxe4 {[%clk 0:04:25.3]} 1-0